fUSD/lending_fUSD_20240426
["ID","MTS","AMOUNT","RATE_DAILY","PERIOD"]
[323658605,1714150232299,-2400.0,0.0001,2]
[323658606,1714150232311,-409.49758582,0.0001,2]
[323658607,1714150232321,-15.74462622,0.00010003,2]
[323658608,1714150232332,-484.25537378,0.00010003,2]
[323658609,1714150232340,-150.31,0.00010029,2]
[323658610,1714150232349,-250.0,0.00010084,2]
[323658611,1714150232358,-182.72,0.00010128,2]
[323658612,1714150232367,-9009.66101598,0.00010131,2]
[323658613,1714150232409,-1648.65670691,0.00010131,2]
[323658649,1714150238118,-387.02813448,0.00010131,2]
[323658650,1714150238174,-901.19631038,0.00010131,2]
[323658651,1714150238186,-4095.87203794,0.00010131,2]
[323658652,1714150238198,-436.63471156,0.00010131,2]
[323658653,1714150238231,-614.1275,0.00010131,2]
[323658654,1714150238290,-3156.59358275,0.00010131,2]
[323658655,1714150238299,-76.00432803,0.00010186,2]
[323658656,1714150238311,-131.99567197,0.00010186,2]
[323658657,1714150238320,-404.45644262,0.00010268,2]
[323658658,1714150238341,-21.70355738,0.00010268,2]
[323658659,1714150238351,-487.46433624,0.0001029,2]
[323658660,1714150238452,-2327.89566376,0.0001029,2]
[323658661,1714150238462,-150.31,0.0001029,2]
[323658662,1714150238471,-422.27,0.00010311,2]
[323658663,1714150238481,-2159.53,0.00010343,2]
[323658664,1714150238490,-166.8,0.00010433,2]
[323658665,1714150238500,-1109.7,0.00010433,4]
[323658666,1714150238510,-1430.66,0.00010433,2]
[323658667,1714150238519,-150.31,0.00010551,2]
[323658668,1714150238529,-1300.07738684,0.00010737,2]
[323658669,1714150238538,-833.33691221,0.00010737,2]
[323658670,1714150238548,-600.0,0.000109,3]
[323658671,1714150238557,-2000.0,0.00010959,3]
[323658673,1714150238566,-10000.0,0.00010959,2]
[323658675,1714150238575,-260.9089,0.00011205,2]
[323658676,1714150238584,-760.0,0.00011246,2]
[323658677,1714150238593,-1084.01,0.00011258,2]
[323658678,1714150238603,-1084.01,0.00011261,2]
[323658679,1714150238613,-1084.01,0.00011264,2]
[323658680,1714150238622,-1084.01,0.00011267,2]
[323658682,1714150238631,-1084.01,0.0001127,2]
[323658684,1714150238641,-1084.01,0.00011273,2]
[323658686,1714150238652,-1084.01,0.00011276,2]
[323658688,1714150238661,-1084.01,0.00011279,2]
[323658690,1714150238670,-1084.01,0.00011282,2]
[323658692,1714150238679,-1084.01,0.00011285,2]
[323658696,1714150238690,-1084.01,0.00011288,2]
[323658699,1714150238699,-1084.01,0.00011291,2]
[323658702,1714150238708,-4583.44785109,0.00011292,2]
[323658705,1714150238718,-1084.01,0.00011294,2]
[323658708,1714150238729,-210.24604904,0.00011295,2]
[323658710,1714150238738,-1084.01,0.00011297,2]
[323658711,1714150238747,-1084.01,0.000113,2]
[323658712,1714150238757,-1084.01,0.00011303,2]
[323658713,1714150238766,-788.98,0.00011304,2]
[323658714,1714150238776,-1394.19,0.00011304,2]
[323658715,1714150238785,-500.0,0.00011304,2]
[323658716,1714150238795,-500.0,0.00011304,2]
[323658717,1714150238804,-2196.6,0.00011304,2]
[323658718,1714150238814,-1678.12,0.00011304,2]
[323658719,1714150238824,-1854.87,0.00011304,2]
[323658720,1714150238833,-2400.68,0.00011304,2]
[323658721,1714150238842,-2239.95,0.00011304,2]
[323658722,1714150238851,-2716.34,0.00011304,2]
[323658723,1714150238860,-1086.37,0.00011304,2]
[323658724,1714150238870,-1182.47,0.00011304,2]
[323658725,1714150238879,-500.0,0.00011304,2]
[323658726,1714150238888,-5458.88,0.00011304,2]
[323658727,1714150238897,-500.0,0.00011304,2]
[323658728,1714150238906,-500.0,0.00011304,2]
[323658729,1714150238915,-500.0,0.00011304,2]
[323658730,1714150238925,-500.0,0.00011304,2]
[323658731,1714150238934,-500.0,0.00011304,2]
[323658732,1714150238944,-500.0,0.00011304,2]
[323658733,1714150238954,-500.0,0.00011304,2]
[323658734,1714150238964,-500.0,0.00011304,2]
[323658735,1714150238973,-2824.31,0.00011304,2]
[323658736,1714150238982,-508994.67578071,0.00011305,2]
[323658737,1714150238991,-1084.01,0.00011306,2]
[323658738,1714150239000,-1084.01,0.00011309,2]
[323658739,1714150239010,-1084.01,0.00011311,2]
[323658740,1714150239019,-1084.01,0.00011314,2]
[323658741,1714150239028,-390.5365,0.0001134,2]
[323658742,1714150239038,-158.43571475,0.00011435,2]
[323658743,1714150239047,-363.03433536,0.00011436,2]
[323658744,1714150239056,-597.5,0.00011436,2]
[323658745,1714150239065,-10000.0,0.00011437,2]
[323658746,1714150239074,-705.82181173,0.00011437,2]
[323658747,1714150239084,-1093.32,0.00011437,2]
[323658748,1714150239093,-1382.18,0.00011437,2]
[323658749,1714150239103,-1992.07,0.00011437,2]
[323658750,1714150239113,-1628.3,0.00011437,2]
[323658751,1714150239122,-966.46,0.00011437,2]
[323658752,1714150239130,-5050.21,0.00011437,2]
[323658753,1714150239140,-3072.98,0.00011437,2]
[323658754,1714150239149,-1042.2,0.00011437,2]
[323658755,1714150239159,-899.64,0.00011437,2]
[323658756,1714150239168,-500.0,0.00011437,2]
[323658757,1714150239177,-2800.92,0.00011437,2]
[323658758,1714150239187,-500.0,0.00011437,2]
[323658759,1714150239196,-2289.85,0.00011437,2]
[323658760,1714150239206,-155.0,0.00011438,2]
[323658761,1714150239215,-1994.63391406,0.00011438,2]
[323658762,1714150239224,-989.66735487,0.00011438,2]
[323658763,1714150239235,-526.15864625,0.00011438,2]
[323658764,1714150239245,-444.46701666,0.00011438,2]
[323658765,1714150239254,-2321.74176097,0.00011438,2]
[323658766,1714150239264,-408.40214741,0.00011438,2]
[323658767,1714150239273,-155.0,0.00011438,2]
[323658768,1714150239283,-4332.58774671,0.00011438,2]
[323658769,1714150239293,-194.36220808,0.00011438,2]
[323658770,1714150239302,-1244.26931048,0.00011438,2]
[323658771,1714150239312,-1351.45342977,0.00011438,2]
[323658772,1714150239322,-233.74288174,0.00011438,2]
[323658773,1714150239331,-305.46425129,0.00011438,2]
[323658774,1714150239341,-155.0,0.00011438,2]
[323658775,1714150239350,-4322.85909605,0.00011438,2]
[323658776,1714150239360,-236.4795796,0.00011438,2]
[323658777,1714150239369,-292.886979,0.00011438,2]
[323658778,1714150239378,-157.23443646,0.00011439,2]
[323658779,1714150239389,-1082.25647204,0.00011439,2]
[323658780,1714150239398,-500.0,0.00011439,2]
[323658781,1714150239410,-500.0,0.00011439,2]
[323658782,1714150239419,-500.0,0.00011439,2]
[323658783,1714150239429,-224.33588216,0.00011439,2]
[323658784,1714150239439,-500.0,0.00011439,2]
[323658785,1714150239448,-500.0,0.00011439,2]
[323658786,1714150239457,-500.0,0.00011439,2]
[323658787,1714150239467,-500.0,0.00011439,2]
[323658788,1714150239476,-500.0,0.00011439,2]
[323658789,1714150239485,-500.0,0.00011439,2]
[323658790,1714150239495,-500.0,0.00011439,2]
[323658791,1714150239507,-500.0,0.00011439,2]
[323658792,1714150239517,-500.0,0.00011439,2]
[323658793,1714150239526,-178.32697276,0.00011439,2]
[323658794,1714150239535,-500.0,0.00011439,2]
[323658795,1714150239546,-500.0,0.00011439,2]
[323658796,1714150239555,-500.0,0.00011439,2]
[323658797,1714150239564,-500.0,0.00011439,2]
[323658798,1714150239573,-500.0,0.00011439,2]
[323658799,1714150239583,-500.0,0.00011439,2]
[323658800,1714150239592,-541.27,0.00011439,2]
[323658801,1714150239602,-9768.37,0.00011439,2]
[323658802,1714150239611,-3381.72,0.00011439,2]
[323658803,1714150239621,-577.61997394,0.00011439,2]
[323658804,1714150239630,-1031.93,0.00011439,2]
[323658805,1714150239642,-500.0,0.00011439,2]
[323658806,1714150239652,-500.0,0.00011439,2]
[323658807,1714150239663,-500.0,0.00011439,2]
[323658808,1714150239672,-500.0,0.00011439,2]
[323658809,1714150239682,-500.0,0.00011439,2]
[323658810,1714150239692,-500.0,0.00011439,2]
[323658811,1714150239706,-500.0,0.00011439,2]
[323658812,1714150239715,-500.0,0.00011439,2]
[323658813,1714150239725,-500.0,0.00011439,2]
[323658814,1714150239735,-500.0,0.00011439,2]
[323658815,1714150239746,-500.0,0.00011439,2]
[323658816,1714150239756,-500.0,0.00011439,2]
[323658817,1714150239766,-1732.01,0.00011439,2]
[323658818,1714150239776,-500.0,0.00011439,2]
[323658819,1714150239785,-500.0,0.00011439,2]
[323658820,1714150239794,-150.0,0.00011439,2]
[323658821,1714150239804,-500.0,0.00011439,2]
[323658822,1714150239814,-1082.85,0.00011439,2]
[323658823,1714150239823,-5034.41233588,0.00011439,2]
[323658824,1714150239832,-500.0,0.00011439,2]
[323658825,1714150239842,-500.0,0.00011439,2]
[323658826,1714150239852,-500.0,0.00011439,2]
[323658828,1714150239861,-500.0,0.00011439,2]
[323658829,1714150239870,-500.0,0.00011439,2]
[323658830,1714150239879,-500.0,0.00011439,2]
[323658831,1714150239889,-1291.72,0.00011439,2]
[323658832,1714150239898,-500.0,0.00011439,2]
[323658833,1714150239907,-500.0,0.00011439,2]
[323658834,1714150239916,-500.0,0.00011439,2]
[323658835,1714150239926,-500.0,0.00011439,2]
[323658836,1714150239935,-500.0,0.00011439,2]
[323658837,1714150239945,-1289.49,0.00011439,2]
[323658838,1714150239954,-500.0,0.00011439,2]
[323658839,1714150239963,-500.0,0.00011439,2]
[323658841,1714150239972,-500.0,0.00011439,2]
[323658842,1714150239982,-500.0,0.00011439,2]
[323658843,1714150239991,-500.0,0.00011439,2]
[323658844,1714150240000,-500.0,0.00011439,2]
[323658845,1714150240010,-500.0,0.00011439,2]
[323658846,1714150240020,-500.0,0.00011439,2]
[323658848,1714150240029,-2275.32,0.00011439,2]
[323658849,1714150240038,-500.0,0.00011439,2]
[323658850,1714150240047,-3194.75,0.00011439,2]
[323658851,1714150240056,-500.0,0.00011439,2]
[323658852,1714150240066,-500.0,0.00011439,2]
[323658853,1714150240075,-500.0,0.00011439,2]
[323658854,1714150240085,-500.0,0.00011439,2]
[323658855,1714150240095,-439.48531942,0.00011439,2]
[323658856,1714150240105,-500.0,0.00011439,2]
[323658859,1714150240114,-500.0,0.00011439,2]
[323658862,1714150240123,-2183.79,0.00011439,2]
[323658864,1714150240133,-500.0,0.00011439,2]
[323658867,1714150240142,-500.0,0.00011439,2]
[323658868,1714150240152,-500.0,0.00011439,2]
[323658869,1714150240161,-500.0,0.00011439,2]
[323658870,1714150240171,-500.0,0.00011439,2]
[323658871,1714150240180,-500.0,0.00011439,2]
[323658872,1714150240189,-500.0,0.00011439,2]
[323658873,1714150240199,-500.0,0.00011439,2]
[323658874,1714150240208,-509.56750766,0.00011439,2]
[323658875,1714150240218,-500.0,0.00011439,2]
[323658876,1714150240228,-500.0,0.00011439,2]
[323658877,1714150240237,-1504.88,0.00011439,2]
[323658878,1714150240248,-500.0,0.00011439,2]
[323658879,1714150240257,-500.0,0.00011439,2]
[323658880,1714150240268,-500.0,0.00011439,2]
[323658881,1714150240277,-4182.19,0.00011439,2]
[323658882,1714150240286,-500.0,0.00011439,2]
[323658883,1714150240295,-500.0,0.00011439,2]
[323658884,1714150240305,-500.0,0.00011439,2]
[323658885,1714150240314,-500.0,0.00011439,2]
[323658886,1714150240323,-500.0,0.00011439,2]
[323658887,1714150240333,-500.0,0.00011439,2]
[323658888,1714150240342,-1152.39,0.00011439,2]
[323658889,1714150240352,-500.0,0.00011439,2]
[323658890,1714150240361,-500.0,0.00011439,2]
[323658891,1714150240371,-500.0,0.00011439,2]
[323658892,1714150240380,-500.0,0.00011439,2]
[323658893,1714150240389,-500.0,0.00011439,2]
[323658894,1714150240398,-500.0,0.00011439,2]
[323658895,1714150240408,-500.0,0.00011439,2]
[323658896,1714150240417,-500.0,0.00011439,2]
[323658897,1714150240426,-824.23,0.00011439,2]
[323658898,1714150240436,-936.77,0.00011439,2]
[323658899,1714150240445,-500.0,0.00011439,2]
[323658900,1714150240454,-500.0,0.00011439,2]
[323658901,1714150240463,-235.12,0.00011439,2]
[323658902,1714150240473,-500.0,0.00011439,2]
[323658903,1714150240483,-500.0,0.00011439,2]
[323658904,1714150240493,-500.0,0.00011439,2]
[323658905,1714150240503,-500.0,0.00011439,2]
[323658906,1714150240512,-500.0,0.00011439,2]
[323658907,1714150240522,-500.0,0.00011439,2]
[323658908,1714150240531,-649.9,0.00011439,2]
[323658909,1714150240540,-500.0,0.00011439,2]
[323658910,1714150240550,-500.0,0.00011439,2]
[323658911,1714150240558,-500.0,0.00011439,2]
[323658912,1714150240569,-500.0,0.00011439,2]
[323658913,1714150240578,-527.15,0.00011439,2]
[323658914,1714150240587,-635.74393215,0.00011439,2]
[323658915,1714150240596,-500.0,0.00011439,2]
[323658916,1714150240606,-1783.51,0.00011439,2]
[323658917,1714150240615,-500.0,0.00011439,2]
[323658918,1714150240624,-500.0,0.00011439,2]
[323658919,1714150240634,-500.0,0.00011439,2]
[323658921,1714150240647,-500.0,0.00011439,2]
[323658923,1714150240656,-500.0,0.00011439,2]
[323658924,1714150240666,-500.0,0.00011439,2]
[323658925,1714150240675,-500.0,0.00011439,2]
[323658926,1714150240685,-501.21491854,0.00011439,2]
[323658928,1714150240694,-500.0,0.00011439,2]
[323658930,1714150240703,-500.0,0.00011439,2]
[323658931,1714150240712,-500.0,0.00011439,2]
[323658932,1714150240722,-500.0,0.00011439,2]
[323658933,1714150240732,-500.0,0.00011439,2]
[323658934,1714150240742,-500.0,0.00011439,2]
[323658935,1714150240986,-500.0,0.00011439,2]
[323658936,1714150240997,-1161.04,0.00011439,2]
[323658937,1714150241007,-500.0,0.00011439,2]
[323658938,1714150241016,-2951.91,0.00011439,2]
[323658939,1714150241025,-500.0,0.00011439,2]
[323658940,1714150241034,-500.0,0.00011439,2]
[323658941,1714150241043,-4407.57,0.00011439,2]
[323658942,1714150241052,-500.0,0.00011439,2]
[323658943,1714150241062,-500.0,0.00011439,2]
[323658944,1714150241071,-500.0,0.00011439,2]
[323658945,1714150241080,-649.6,0.00011439,2]
[323658946,1714150241090,-500.0,0.00011439,2]
[323658947,1714150241099,-500.0,0.00011439,2]
[323658948,1714150241108,-500.0,0.00011439,2]
[323658949,1714150241117,-500.0,0.00011439,2]
[323658950,1714150241126,-500.0,0.00011439,2]
[323658951,1714150241136,-500.0,0.00011439,2]
[323658952,1714150241145,-9684.29,0.00011439,2]
[323658953,1714150241154,-357.62,0.00011439,2]
[323658954,1714150241164,-553.87,0.00011439,2]
[323658955,1714150241174,-500.0,0.00011439,2]
[323658956,1714150241183,-500.0,0.00011439,2]
[323658957,1714150241193,-500.0,0.00011439,2]
[323658958,1714150241203,-3366.4,0.00011439,2]
[323658959,1714150241212,-154811.9682,0.0001144,2]
[323658960,1714150241223,-208.0,0.0001146,2]
[323658961,1714150241232,-374.86,0.00011503,2]
[323658962,1714150241243,-500.0,0.00011535,2]
[323658963,1714150241252,-500.0,0.00011535,2]
[323658964,1714150241262,-500.0,0.00011535,2]
[323658965,1714150241271,-500.0,0.00011535,2]
[323658966,1714150241281,-500.0,0.00011535,2]
[323658967,1714150241290,-646.8,0.00011535,2]
[323658968,1714150241300,-670.9,0.00011535,2]
[323658969,1714150241309,-523.63,0.00011535,2]
[323658970,1714150241319,-1307.2,0.00011535,2]
[323658971,1714150241329,-557.81,0.00011535,2]
[323658972,1714150241338,-500.0,0.00011535,2]
[323658973,1714150241348,-500.0,0.00011535,2]
[323658974,1714150241358,-504.42039534,0.00011535,2]
[323658975,1714150241367,-1518.96,0.00011535,2]
[323658976,1714150241376,-554.82232512,0.00011535,2]
[323658977,1714150241386,-633.6,0.00011535,2]
[323658978,1714150241395,-500.0,0.00011535,2]
[323658979,1714150241405,-511.52,0.00011535,2]
[323658980,1714150241414,-500.0,0.00011535,2]
[323658981,1714150241423,-500.0,0.00011535,2]
[323658982,1714150241432,-500.0,0.00011535,2]
[323658983,1714150241441,-500.0,0.00011535,2]
[323658984,1714150241450,-500.0,0.00011535,2]
[323658985,1714150241460,-500.0,0.00011535,2]
[323658986,1714150241470,-498.27609352,0.00011535,2]
[323658987,1714150241479,-1031.89,0.00011535,2]
[323658988,1714150241489,-361.93,0.00011535,2]
[323658989,1714150241500,-500.0,0.00011535,2]
[323658990,1714150241509,-500.0,0.00011535,2]
[323658991,1714150241518,-500.0,0.00011535,2]
[323658992,1714150241527,-500.0,0.00011535,2]
[323658993,1714150241536,-500.0,0.00011535,2]
[323658994,1714150241545,-1662.77,0.00011535,2]
[323658995,1714150241555,-1749.48,0.00011535,2]
[323658996,1714150241564,-500.0,0.00011535,2]
[323658997,1714150241574,-500.0,0.00011535,2]
[323658998,1714150241583,-500.0,0.00011535,2]
[323658999,1714150241593,-500.0,0.00011535,2]
[323659000,1714150241602,-551.1,0.00011535,2]
[323659001,1714150241612,-500.0,0.00011535,2]
[323659002,1714150241621,-1915.18,0.00011535,2]
[323659003,1714150241631,-502.82101681,0.00011535,2]
[323659004,1714150241640,-500.0,0.00011535,2]
[323659005,1714150241653,-500.0,0.00011535,2]
[323659006,1714150241662,-500.0,0.00011535,2]
[323659007,1714150241671,-500.0,0.00011535,2]
[323659008,1714150241681,-500.0,0.00011535,2]
[323659009,1714150241691,-500.0,0.00011535,2]
[323659010,1714150241700,-500.0,0.00011535,2]
[323659011,1714150241710,-641.59,0.00011535,2]
[323659012,1714150241719,-501.63488696,0.00011535,2]
[323659013,1714150241730,-401.16,0.00011535,2]
[323659014,1714150241739,-500.0,0.00011535,2]
[323659015,1714150241748,-500.0,0.00011535,2]
[323659016,1714150241757,-500.0,0.00011535,2]
[323659017,1714150241767,-602.13,0.00011535,2]
[323659018,1714150241776,-501.81947576,0.00011535,2]
[323659019,1714150241785,-500.0,0.00011535,2]
[323659020,1714150241794,-500.0,0.00011535,2]
[323659021,1714150241804,-500.0,0.00011535,2]
[323659022,1714150241813,-500.0,0.00011535,2]
[323659023,1714150241822,-694.72,0.00011535,2]
[323659024,1714150241832,-503.80555505,0.00011535,2]
[323659025,1714150241841,-500.0,0.00011535,2]
[323659026,1714150241850,-500.0,0.00011535,2]
[323659027,1714150241859,-500.0,0.00011535,2]
[323659028,1714150241869,-500.0,0.00011535,2]
[323659029,1714150241878,-500.0,0.00011535,2]
[323659030,1714150241887,-500.0,0.00011535,2]
[323659031,1714150241896,-500.0,0.00011535,2]
[323659032,1714150241906,-640.57,0.00011535,2]
[323659033,1714150241915,-500.0,0.00011535,2]
[323659034,1714150241924,-530.71,0.00011535,2]
[323659035,1714150241933,-500.0,0.00011535,2]
[323659036,1714150241942,-500.94635741,0.00011535,2]
[323659037,1714150241952,-502.64603092,0.00011535,2]
[323659038,1714150241962,-500.0,0.00011535,2]
[323659039,1714150241971,-500.0,0.00011535,2]
[323659040,1714150241980,-506.7115621,0.00011535,2]
[323659041,1714150241990,-566.11,0.00011535,2]
[323659042,1714150241999,-506.91934976,0.00011535,2]
[323659043,1714150242008,-2130.96,0.00011535,2]
[323659044,1714150242018,-500.0,0.00011535,2]
[323659045,1714150242027,-500.0,0.00011535,2]
[323659046,1714150242036,-500.0,0.00011535,2]
[323659047,1714150242045,-500.0,0.00011535,2]
[323659048,1714150242055,-1213.81,0.00011535,2]
[323659049,1714150242064,-502.56317091,0.00011535,2]
[323659050,1714150242073,-500.0,0.00011535,2]
[323659051,1714150242082,-500.0,0.00011535,2]
[323659052,1714150242092,-500.0,0.00011535,2]
[323659053,1714150242101,-500.0,0.00011535,2]
[323659054,1714150242111,-500.0,0.00011535,2]
[323659055,1714150242120,-502.97114621,0.00011535,2]
[323659056,1714150242130,-500.0,0.00011535,2]
[323659057,1714150242138,-500.0,0.00011535,2]
[323659058,1714150242148,-3755.85,0.00011535,2]
[323659059,1714150242158,-504.28361255,0.00011535,2]
[323659060,1714150242167,-500.0,0.00011535,2]
[323659061,1714150242177,-645.35,0.00011535,2]
[323659062,1714150242186,-500.0,0.00011535,2]
[323659063,1714150242196,-500.0,0.00011535,2]
[323659064,1714150242205,-505.57073169,0.00011535,2]
[323659065,1714150242214,-1153.84,0.00011535,2]
[323659066,1714150242223,-500.0,0.00011535,2]
[323659067,1714150242233,-2861.94,0.00011535,2]
[323659068,1714150242243,-647.66,0.00011535,2]
[323659069,1714150242252,-1584.36,0.00011535,2]
[323659070,1714150242261,-371.00801038,0.00011535,2]
[323659071,1714150242270,-500.0,0.00011535,2]
[323659072,1714150242280,-502.35856832,0.00011535,2]
[323659073,1714150242289,-500.0,0.00011535,2]
[323659074,1714150242299,-6488.73,0.00011535,2]
[323659075,1714150242309,-3962.14,0.00011535,2]
[323659076,1714150242318,-508.32733147,0.00011535,2]
[323659077,1714150242328,-500.76453493,0.00011535,2]
[323659078,1714150242337,-4295.61,0.00011535,2]
[323659079,1714150242346,-500.0,0.00011535,2]
[323659080,1714150242355,-500.0,0.00011535,2]
[323659081,1714150242365,-7467.01,0.00011535,2]
[323659082,1714150242374,-500.44760964,0.00011535,2]
[323659083,1714150242384,-815.53,0.00011535,2]
[323659084,1714150242393,-500.0,0.00011535,2]
[323659085,1714150242402,-500.0,0.00011535,2]
[323659086,1714150242412,-500.22937014,0.00011535,2]
[323659087,1714150242422,-500.0,0.00011535,2]
[323659088,1714150242431,-500.0,0.00011535,2]
[323659089,1714150242441,-3466.33,0.00011535,2]
[323659090,1714150242450,-500.48784711,0.00011535,2]
[323659091,1714150242460,-500.0,0.00011535,2]
[323659092,1714150242469,-500.0,0.00011535,2]
[323659093,1714150242479,-500.0,0.00011535,2]
[323659094,1714150242488,-500.0,0.00011535,2]
[323659095,1714150242498,-1589.56,0.00011535,2]
[323659096,1714150242507,-500.0,0.00011535,2]
[323659097,1714150242516,-9375.88,0.00011535,2]
[323659098,1714150242525,-460.08085227,0.00011535,2]
[323659099,1714150242534,-500.0,0.00011535,2]
[323659100,1714150242544,-500.0,0.00011535,2]
[323659101,1714150242553,-500.0,0.00011535,2]
[323659102,1714150242562,-500.0,0.00011535,2]
[323659103,1714150242571,-500.0,0.00011535,2]
[323659104,1714150242581,-500.0,0.00011535,2]
[323659105,1714150242590,-1164.77,0.00011535,2]
[323659106,1714150242599,-500.0,0.00011535,2]
[323659107,1714150242608,-500.0,0.00011535,2]
[323659108,1714150242618,-500.0,0.00011535,2]
[323659109,1714150242627,-15720.28,0.00011535,2]
[323659110,1714150242637,-500.0,0.00011535,2]
[323659111,1714150242650,-500.0,0.00011535,2]
[323659112,1714150242659,-500.0,0.00011535,2]
[323659113,1714150242668,-500.0,0.00011535,2]
[323659114,1714150242678,-500.0,0.00011535,2]
[323659115,1714150242687,-500.0,0.00011535,2]
[323659116,1714150242696,-500.0,0.00011535,2]
[323659117,1714150242707,-500.0,0.00011535,2]
[323659118,1714150242720,-1145.55,0.00011535,2]
[323659119,1714150242729,-500.0,0.00011535,2]
[323659120,1714150242739,-500.0,0.00011535,2]
[323659121,1714150242748,-2478.29,0.00011535,2]
[323659122,1714150242758,-1743.27,0.00011535,2]
[323659123,1714150242768,-500.0,0.00011535,2]
[323659124,1714150242777,-1579.07,0.00011535,2]
[323659125,1714150242787,-500.0,0.00011535,2]
[323659126,1714150242796,-500.0,0.00011535,2]
[323659127,1714150242805,-2074.53,0.00011535,2]
[323659129,1714150242814,-1928.06,0.00011535,2]
[323659131,1714150242823,-654.98,0.00011535,2]
[323659133,1714150242832,-2788.94,0.00011535,2]
[323659135,1714150242842,-500.0,0.00011535,2]
[323659137,1714150242850,-500.0,0.00011535,2]
[323659139,1714150242860,-500.0,0.00011535,2]
[323659141,1714150242869,-501.51721636,0.00011535,2]
[323659143,1714150242878,-666.3,0.00011535,2]
[323659146,1714150242887,-2096.48,0.00011535,2]
[323659149,1714150242896,-500.0,0.00011535,2]
[323659152,1714150242905,-1524.55,0.00011535,2]
[323659155,1714150242914,-500.0,0.00011535,2]
[323659157,1714150242923,-500.0,0.00011535,2]
[323659159,1714150242932,-1658.01,0.00011535,2]
[323659161,1714150242942,-500.0,0.00011535,2]
[323659162,1714150242951,-500.0,0.00011535,2]
[323659163,1714150242961,-507.77650668,0.00011535,2]
[323659164,1714150242970,-500.0,0.00011535,2]
[323659166,1714150242979,-500.0,0.00011535,2]
[323659168,1714150242988,-500.0,0.00011535,2]
[323659170,1714150242999,-2234.9,0.00011535,2]
[323659172,1714150243008,-408.36793413,0.00011535,2]
[323659174,1714150243017,-5714.02,0.00011536,2]
[323659176,1714150243027,-500.0,0.00011536,2]
[323659180,1714150243036,-2114.98,0.00011536,2]
[323659184,1714150243045,-3485.89,0.00011536,2]
[323659187,1714150243055,-500.0,0.00011536,2]
[323659190,1714150243064,-1925.72,0.00011536,2]
[323659193,1714150243073,-500.0,0.00011536,2]
[323659196,1714150243083,-3350.21,0.00011536,2]
[323659198,1714150243091,-2138.81,0.00011536,2]
[323659200,1714150243101,-2376.06,0.00011536,2]
[323659202,1714150243110,-1226.48,0.00011536,2]
[323659204,1714150243119,-2448.36,0.00011536,2]
[323659207,1714150243128,-4697.4,0.00011536,2]
[323659209,1714150243137,-5658.6,0.00011536,2]
[323659211,1714150243146,-2498.69,0.00011536,2]
[323659214,1714150243155,-825.48,0.00011536,2]
[323659217,1714150243165,-2300.13,0.00011536,2]
[323659220,1714150243174,-5436.55,0.00011536,2]
[323659223,1714150243184,-7037.92,0.00011536,2]
[323659225,1714150243193,-1504.34,0.00011536,2]
[323659226,1714150243202,-1994.61,0.00011536,2]
[323659229,1714150243211,-500.0,0.00011537,2]
[323659230,1714150243220,-500.0,0.00011537,2]
[323659231,1714150243228,-500.0,0.00011537,2]